lending/lending_fUSD_20240928
["ID","MTS","AMOUNT","RATE_DAILY","PERIOD"]
[339378852,1727515831730,-294.78,0.00011593,2]
[339378854,1727515831740,-151.51,0.00011667,2]
[339378856,1727515831750,-151.51,0.00011673,2]
[339378858,1727515831759,-151.51,0.00011678,2]
[339378860,1727515831769,-151.51,0.00011683,2]
[339378862,1727515831778,-151.51,0.00011689,2]
[339378863,1727515831787,-151.51,0.00011694,2]
[339378864,1727515831796,-628.06039044,0.00011694,2]
[339378865,1727515831808,-113.81960956,0.00011694,2]
[339378867,1727515831817,-151.51,0.00011699,2]
[339378868,1727515831826,-151.51,0.00011704,2]
[339378870,1727515831835,-151.51,0.0001171,2]
[339378871,1727515831844,-151.51,0.00011715,2]
[339378872,1727515831854,-151.51,0.0001172,2]
[339378873,1727515831863,-151.51,0.00011726,2]
[339378874,1727515831872,-182.14,0.00011826,2]
[339378875,1727515831881,-584.52221005,0.000119,4]
[339378876,1727515831893,-315.47778995,0.000119,4]
[339378877,1727515831903,-1800.0,0.00012,4]
[339378878,1727515831913,-262.18166012,0.00012099,2]
[339378879,1727515831924,-37.81833988,0.00012099,2]
[339378880,1727515831933,-1676.73260987,0.000121,4]
[339378881,1727515831944,-1023.26739013,0.000121,4]
[339378882,1727515831953,-254.7438695,0.000122,4]
[339378883,1727515831964,-1786.49857163,0.000122,4]
[339378884,1727515831975,-1558.75755887,0.000122,4]
[339378885,1727515831984,-4500.0,0.000123,4]
[339378886,1727515831994,-900.0,0.000124,4]
[339378887,1727515832003,-196.666709,0.00012406,2]
[339378888,1727515832012,-87.54504943,0.00012433,2]
[339378889,1727515832027,-92.45495057,0.00012433,2]
[339378890,1727515832036,-900.0,0.000125,4]
[339378891,1727515832047,-200.75449853,0.000126,4]
[339378896,1727515837932,-699.24550147,0.000126,4]
[339378897,1727515837942,-900.0,0.000127,4]
[339378898,1727515837952,-5681.68735987,0.0001278,2]
[339378899,1727515837961,-11780.88,0.000128,2]
[339378900,1727515837971,-450.3239,0.000128,2]
[339378901,1727515837980,-971.0,0.000128,4]
[339378902,1727515837990,-195.57584692,0.000128,2]
[339378903,1727515838000,-196.07,0.000128,2]
[339378904,1727515838010,-170.09557078,0.000128,2]
[339378905,1727515838020,-170.59,0.000128,2]
[339378906,1727515838030,-159.16017514,0.000128,2]
[339378907,1727515838039,-159.66,0.000128,2]
[339378908,1727515838049,-230.3,0.00012828,2]
[339378909,1727515838061,-1000.0,0.00012871,2]
[339378910,1727515838071,-3016.55182492,0.00012899,2]
[339378911,1727515838081,-332.81602078,0.00012899,2]
[339378912,1727515838091,-221.58445907,0.00012899,2]
[339378913,1727515838102,-26152.77318873,0.00012899,2]
[339378914,1727515838111,-505.54810771,0.00012899,2]
[339378915,1727515838121,-3619.26078314,0.000129,2]
[339378916,1727515838131,-2274.68379847,0.000129,2]
[339378917,1727515838142,-373798.36493336,0.000129,2]
[339378918,1727515838155,-422.499,0.000129,2]
[339378919,1727515838169,-4062.04191742,0.000129,2]
[339378921,1727515838180,-534.79799065,0.000129,2]
[339378923,1727515838192,-319.32,0.000129,2]
[339378925,1727515838203,-44684.85508852,0.000129,2]
[339378927,1727515838214,-71630.69280158,0.000129,2]
[339378938,1727515840014,-20106.592846,0.000129,2]
[339378939,1727515840026,-6398.0706,0.000129,2]
[339378940,1727515840038,-415.1,0.000129,2]
[339378941,1727515840049,-267.19067078,0.000129,2]
[339378966,1727515842813,-740.23858598,0.000129,2]
[339378967,1727515842825,-380375.40311803,0.000129,2]
[339378968,1727515842874,-6336.94334604,0.000129,2]
[339378969,1727515842886,-1328.64535346,0.000129,2]
[339378970,1727515842934,-707.3898016,0.000129,2]
[339378971,1727515842945,-370.87402425,0.000129,2]
[339378972,1727515842956,-640.224,0.000129,2]
[339378973,1727515843054,-296.13443335,0.000129,2]
[339378974,1727515843069,-5186.24320849,0.000129,2]
[339378975,1727515843080,-1732.88242047,0.000129,2]
[339378976,1727515843092,-9493.0405304,0.000129,2]
[339378977,1727515843102,-2868.60733171,0.000129,2]
[339378978,1727515843113,-604.07802196,0.000129,2]
[339378979,1727515843124,-2126.874996,0.000129,2]
[339378980,1727515843136,-3079.99995,0.000129,2]
[339378981,1727515843148,-394.58101345,0.000129,2]
[339378982,1727515843160,-2421.6,0.000129,2]
[339378983,1727515843171,-5626.523833,0.000129,2]
[339378985,1727515845792,-437.57170826,0.000129,2]
[339378986,1727515845853,-4983.1836386,0.000129,2]
[339378987,1727515845916,-6396.39000001,0.000129,2]
[339378988,1727515845928,-12589.80803397,0.000129,2]
[339378989,1727515846024,-2892.75907951,0.000129,2]
[339378990,1727515846035,-67555.08890951,0.000129,2]
[339378992,1727515868283,477.63378945,0.00022,120]
[339378993,1727515906718,280.91,0.00010453,2]
[339378996,1727516263031,1050.0,0.00011,2]
[339379000,1727516440341,266.86,0.00010075,2]
[339379024,1727516947038,1532.06246147,0.0001,2]
[339379048,1727517032035,-173.71021251,0.00011589,2]
[339379049,1727517032045,-265.20755301,0.00011589,2]
[339379050,1727517032055,-158.51370714,0.00011589,2]
[339379051,1727517032066,-182.14,0.00011794,2]
[339379052,1727517032074,-1525.29976514,0.00011797,2]
[339379053,1727517032083,-250.0,0.00011797,2]
[339379054,1727517032092,-150.37876219,0.00011881,2]
[339379055,1727517032104,-107.43123781,0.00011881,2]
[339379056,1727517032113,-286.06,0.00011888,2]
[339379057,1727517032122,-243.38,0.00011935,2]
[339379058,1727517032132,-149.42508475,0.00011951,2]
[339379059,1727517032143,-535.84859835,0.00011951,2]
[339379060,1727517032173,-2065.7263169,0.00011951,2]
[339379061,1727517032182,-1000.0,0.00011965,2]
[339379062,1727517032191,-150.0,0.00012164,2]
[339379063,1727517032200,-4320.87029486,0.00012182,2]
[339379064,1727517032209,-266.86,0.00012338,2]
[339379065,1727517032219,-154.685098,0.00012406,2]
[339379066,1727517032229,-150.99,0.00012406,2]
[339379067,1727517032238,-150.0,0.00012799,2]
[339379068,1727517032247,-396.2127,0.000128,2]
[339379069,1727517032259,-229.4671,0.000128,2]
[339379070,1727517032268,-220.1512,0.000128,2]
[339379071,1727517032277,-156.41126223,0.000128,2]
[339379072,1727517032286,-156.91,0.000128,2]
[339379073,1727517032295,-321.47115554,0.000128,2]
[339379074,1727517032305,-272.55,0.000128,2]
[339379075,1727517032314,-255.05,0.000128,2]
[339379076,1727517032323,-252.15526954,0.000128,2]
[339379077,1727517032332,-252.15526953,0.0001285,2]
[339379078,1727517032342,-564.8212458,0.00012873,2]
[339379079,1727517032351,-500.0,0.00012873,2]
[339379080,1727517032361,-261.208,0.00012873,2]
[339379081,1727517032370,-34622.15795576,0.00012889,2]
[339379082,1727517034973,-2124.52887391,0.00012889,2]
[339379086,1727517038078,-473.48451638,0.00012889,2]
[339379087,1727517038165,-184331.87191591,0.00012889,2]
[339379088,1727517038174,-544.41794528,0.00012897,2]
[339379089,1727517038183,-3812.4861229,0.000129,2]
[339379090,1727517038193,-34748.43226019,0.000129,2]
[339379091,1727517038202,-1000.0,0.000129,7]
[339379092,1727517038212,-22975.21756814,0.000129,2]
[339379109,1727517040090,-1333.93009024,0.000129,2]
[339379110,1727517040101,-487.76515743,0.000129,2]
[339379124,1727517043244,-5595.82016693,0.000129,2]
[339379125,1727517043262,-27778.42218787,0.000129,2]
[339379126,1727517043350,-1555.35006089,0.000129,2]
[339379135,1727517045906,-48386.0531306,0.000129,2]
[339379136,1727517046060,-320.94132826,0.000129,2]
[339379137,1727517046078,-301.33001495,0.000129,2]
[339379138,1727517046091,-771.33145462,0.000129,2]
[339379139,1727517046167,-3527.69677201,0.000129,2]
[339379140,1727517046178,-13239.16505135,0.000129,2]
[339379141,1727517046189,-9027.81154367,0.000129,2]
[339379142,1727517046270,-12707.0,0.000129,2]
[339379144,1727517173658,269.81,9.96e-05,2]
[339379154,1727517685316,333.0,0.00022,120]
[339379155,1727517692864,-500.0,0.00016438,30]
[339379156,1727517692890,-500.0,0.00016438,30]
[339379157,1727517697353,-500.0,0.00016438,30]
[339379158,1727517697377,-500.0,0.00016438,30]
[339379159,1727517700195,-500.0,0.00016438,30]
[339379160,1727517700219,-500.0,0.00016438,30]
[339379161,1727517702594,-500.0,0.00016438,30]
[339379162,1727517702621,-500.0,0.00016438,30]
[339379163,1727517710257,-500.0,0.00016438,30]
[339379164,1727517710282,-500.0,0.00016438,30]
[339379165,1727517711506,-500.0,0.00016438,30]
[339379166,1727517711530,-500.0,0.00016438,30]
[339379167,1727517712397,-487.24254521,0.00016438,30]
[339379168,1727517712431,-512.75745479,0.0002,30]
[339379170,1727517721289,-3961.19,0.00011305,2]
[339379171,1727517721310,-1014.46489589,0.00011362,2]
[339379172,1727517721330,-267.02,0.00011396,2]
[339379173,1727517721351,-172.09,0.0001142,2]
[339379177,1727517819759,2000.0,0.00021,60]
[339379178,1727517828904,256.31,9.588e-05,2]
[339379179,1727517843370,2018.525,0.00021,60]
[339379226,1727518066690,1050.0,0.00011,2]
[339379231,1727518232228,-1000.0,0.00011384,2]
[339379232,1727518232240,-267.02,0.00011421,2]
[339379233,1727518232252,-250.0,0.00011472,2]
[339379234,1727518232263,-300.0,0.00011481,2]
[339379235,1727518232274,-701.69318681,0.00011482,2]
[339379236,1727518232287,-6291.224958,0.00011482,2]
[339379237,1727518232300,-12743.91185519,0.00011482,2]
[339379238,1727518232311,-201.32924666,0.0001149,2]
[339379239,1727518232336,-48.67075334,0.0001149,2]
[339379240,1727518232347,-743.8637052,0.0001149,2]
[339379241,1727518232357,-194.7,0.00011506,2]
[339379242,1727518232369,-2751.0,0.00011507,2]
[339379243,1727518232379,-193.39363993,0.00011509,2]
[339379244,1727518232392,-56.60636007,0.00011509,2]
[339379245,1727518232403,-150.0,0.00011589,2]
[339379246,1727518232413,-150.0,0.00011589,2]
[339379247,1727518232423,-150.0,0.00011589,2]
[339379248,1727518232433,-148.4753398,0.00011589,2]
[339379249,1727518232446,-1.52466021,0.00011589,2]
[339379250,1727518232456,-151.71,0.00011786,2]
[339379251,1727518232467,-912.8,0.00011786,2]
[339379253,1727518232477,-95.31791603,0.00011791,2]
[339379254,1727518232491,-56.39208397,0.00011791,2]
[339379255,1727518232501,-151.71,0.00011796,2]
[339379256,1727518232512,-151.71,0.00011801,2]
[339379257,1727518232522,-151.71,0.00011806,2]
[339379258,1727518232532,-151.71,0.0001181,2]
[339379259,1727518232544,-151.71,0.00011815,2]
[339379260,1727518232555,-369.30677746,0.00011815,2]
[339379261,1727518238279,-130.68322254,0.00011815,2]
[339379262,1727518238289,-151.71,0.0001182,2]
[339379264,1727518238300,-305.46,0.00011822,2]
[339379265,1727518238310,-151.71,0.00011825,2]
[339379266,1727518238322,-151.71,0.0001183,2]
[339379267,1727518238332,-151.71,0.00011835,2]
[339379268,1727518238343,-151.71,0.0001184,2]
[339379269,1727518238353,-151.71,0.00011845,2]
[339379270,1727518238363,-256.31,0.00011852,2]
[339379271,1727518238373,-150.0,0.00012233,2]
[339379272,1727518238383,-150.0,0.00012233,2]
[339379273,1727518238394,-150.0,0.000123,2]
[339379274,1727518238404,-854.7,0.000123,2]
[339379275,1727518238414,-1506.96,0.000123,2]
[339379276,1727518238424,-258.4,0.00012329,2]
[339379277,1727518238435,-1896.682111,0.00012406,2]
[339379278,1727518238445,-194.257825,0.00012406,2]
[339379279,1727518238455,-174.853998,0.00012406,2]
[339379280,1727518238465,-194.212098,0.00012406,2]
[339379281,1727518238476,-167.98,0.00012445,2]
[339379282,1727518238486,-3928.88257863,0.000125,5]
[339379283,1727518238498,-7284.11401147,0.000125,5]
[339379284,1727518238510,-7890.33476282,0.000125,5]
[339379285,1727518238520,-1896.682111,0.00012561,2]
[339379286,1727518238530,-395.16004784,0.00012607,2]
[339379287,1727518238539,-420.0,0.0001261,2]
[339379288,1727518238550,-180.0,0.00012635,2]
[339379289,1727518238560,-1782.82307834,0.00012716,2]
[339379290,1727518238574,-113.85903266,0.00012716,2]
[339379291,1727518238584,-150.0,0.00012728,2]
[339379292,1727518238594,-1000.0,0.00012789,2]
[339379293,1727518238604,-5385.9216,0.00012789,2]
[339379294,1727518238614,-1109.8293,0.00012789,2]
[339379295,1727518238624,-2941.57430783,0.0001279,2]
[339379296,1727518238634,-2514.0003,0.000128,2]
[339379297,1727518238645,-8492.73097798,0.000128,2]
[339379298,1727518238658,-9528.16072202,0.000128,2]
[339379299,1727518238668,-4471.83927798,0.000128,2]
[339379300,1727518238680,-1056.81499998,0.000128,2]
[339379301,1727518238693,-3210.67532204,0.000128,2]
[339379302,1727518238703,-2278.5678,0.000128,2]
[339379303,1727518238714,-250.65,0.000128,2]
[339379304,1727518238724,-218.04,0.000128,2]
[339379305,1727518238734,-204.04,0.000128,2]
[339379306,1727518238744,-2844.9463,0.000128,2]
[339379307,1727518238754,-6894.80479806,0.000128,2]
[339379308,1727518238764,-1000.0,0.00012807,2]
[339379309,1727518238775,-6894.80479797,0.00012811,2]
[339379311,1727518238786,-6894.80479797,0.00012822,2]
[339379313,1727518238796,-190.613,0.00012833,2]
[339379316,1727518238807,-6894.80479797,0.00012833,2]
[339379318,1727518238819,-150.0,0.00012839,2]
[339379320,1727518238829,-6894.80479797,0.00012844,2]
[339379322,1727518238839,-267.49,0.00012849,14]
[339379324,1727518238849,-6251.12460456,0.00012856,2]
[339379326,1727518238862,-643.68019341,0.00012856,2]
[339379328,1727518238872,-305.43152868,0.00012867,2]
[339379329,1727518238897,-1419.45483368,0.00012867,2]
[339379332,1727518238908,-1316.89760737,0.00012867,2]
[339379334,1727518238920,-1234.63522344,0.00012867,2]
[339379341,1727518240366,-1417.83548039,0.00012867,2]
[339379342,1727518240378,-274.30899999,0.00012867,2]
[339379343,1727518240413,-926.24112442,0.00012867,2]
[339379344,1727518240422,-239.301,0.00012871,2]
[339379345,1727518240432,-189.378,0.00012871,2]
[339379346,1727518240444,-1896.682111,0.00012871,2]
[339379347,1727518240455,-150.0,0.00012877,2]
[339379348,1727518240464,-1320.22727654,0.00012878,2]
[339379354,1727518243581,-1522.09622581,0.00012878,2]
[339379355,1727518243593,-3508.09928381,0.00012878,2]
[339379359,1727518246184,-524.01390071,0.00012878,2]
[339379360,1727518246337,-20.3681111,0.00012878,2]
[339379361,1727518246347,-590.06189133,0.00012889,2]
[339379369,1727518345418,195.78,0.00010959,2]
[339379382,1727518417530,230.67,0.00010296,2]
[339379387,1727518943539,219.13,0.00010008,2]
[339379460,1727519431579,-183.93770749,0.00011816,2]
[339379461,1727519431588,-276.22,0.00011851,2]
[339379462,1727519431598,-250.0,0.00011884,2]
[339379463,1727519431607,-600.0,0.00011911,2]
[339379464,1727519431617,-2751.0,0.00011916,2]
[339379465,1727519431626,-400.0,0.0001195,2]
[339379466,1727519431636,-151.74,0.00011962,2]
[339379467,1727519431645,-150.999998,0.00012,2]
[339379468,1727519431655,-2.6425263,0.00012033,2]
[339379469,1727519431667,-241.7174737,0.00012033,2]
[339379470,1727519431676,-173.83,0.00012176,2]
[339379471,1727519431686,-152.68,0.00012176,2]
[339379472,1727519431695,-219.13,0.00012272,2]
[339379473,1727519431705,-174.853998,0.00012406,2]
[339379474,1727519431714,-194.212098,0.00012406,2]
[339379475,1727519431723,-105.9163643,0.00012406,2]
[339379481,1727519437444,-88.3414607,0.00012406,2]
[339379482,1727519437454,-1025.0595,0.000128,2]
[339379483,1727519437464,-169.93247159,0.000128,2]
[339379485,1727519437671,-1150.02229888,0.000128,2]
[339379486,1727519437681,-200.52,0.000128,2]
[339379487,1727519437690,-1319.95477046,0.00012811,2]
[339379488,1727519437700,-1294.67767767,0.00012822,2]
[339379489,1727519437711,-25.27709279,0.00012822,2]
[339379490,1727519437720,-433.59383144,0.00012833,2]
[339379491,1727519437731,-886.36093902,0.00012833,2]
[339379492,1727519437740,-1319.95477046,0.00012844,2]
[339379493,1727519437749,-1319.95477046,0.00012856,2]
[339379494,1727519437758,-1319.95477046,0.00012867,2]
[339379495,1727519437767,-1319.95477046,0.00012878,2]
[339379496,1727519437776,-1319.95477046,0.00012889,2]
[339379497,1727519437785,-1133.03870407,0.00012899,3]
[339379498,1727519437794,-1133.03870407,0.00012899,3]
[339379499,1727519437803,-191.441,0.00012899,2]
[339379500,1727519437813,-256.16297046,0.00012899,2]
[339379501,1727519437821,-515.78110216,0.00012899,2]
[339379502,1727519437832,-36.7954604,0.00012899,2]
[339379503,1727519437842,-150.0,0.00012899,2]
[339379504,1727519437851,-3049.98889832,0.000129,2]
[339379505,1727519437862,-26219.9136137,0.000129,2]
[339379506,1727519437871,-7927.10887405,0.000129,2]
[339379551,1727519442945,-3583.92583359,0.000129,2]
[339379552,1727519442957,-860.7265551,0.000129,2]
[339379554,1727519442968,-769.93495303,0.000129,2]
[339379566,1727519445457,-2913.17618609,0.00012198,2]
[339379567,1727519445470,-555.9055107,0.00012198,2]
[339379568,1727519445479,-2500.0,0.000128,2]
[339379569,1727519445488,-8538.33431779,0.000129,2]
[339379570,1727519445499,-8999.98669471,0.000129,2]
[339379571,1727519445616,-1364.95771426,0.000129,2]
[339379572,1727519445627,-406.01917127,0.000129,2]
[339379573,1727519445638,-23699.66467572,0.000129,2]
[339379574,1727519445650,-6603.98241939,0.000129,2]
[339379575,1727519445706,-2580.39101822,0.000129,2]
[339379576,1727519445864,-5999.99999999,0.000129,2]
[339379589,1727519525752,256.9,0.00010959,2]
[339379593,1727519659686,237.21,9.846e-05,2]
[339379599,1727519912851,9327.0,0.00022,120]
[339379612,1727519971299,6293.0,0.00022,120]
[339379631,1727520145534,231.93,0.00010959,2]
[339379645,1727520342443,237.41,9.892e-05,2]
[339379683,1727520631644,-173.83,0.00011271,2]
[339379684,1727520631654,-268.21,0.00011559,2]
[339379685,1727520631664,-480.0,0.00011652,2]
[339379686,1727520631673,-0.46935559,0.00011653,2]
[339379687,1727520631685,-294.15884645,0.00011653,2]
[339379688,1727520631696,-321.08178141,0.00011653,2]
[339379689,1727520631739,-2135.29001655,0.00011653,2]
[339379690,1727520631748,-520.0,0.00011688,2]
[339379691,1727520631758,-231.67,0.00011747,2]
[339379692,1727520631767,-250.0,0.00011788,2]
[339379693,1727520631777,-600.0,0.000119,4]
[339379694,1727520631786,-1300.0,0.00012,4]
[339379695,1727520631795,-1277.03527597,0.000121,4]
[339379696,1727520631806,-622.96472403,0.000121,4]
[339379697,1727520631816,-619.91234272,0.000121,2]
[339379708,1727520637672,-380.07765728,0.000121,2]
[339379709,1727520637681,-237.41,0.00012156,2]
[339379710,1727520637690,-309.31,0.00012197,2]
[339379711,1727520637699,-6530.91830321,0.00012198,2]
[339379712,1727520637708,-2600.0,0.000122,4]
[339379713,1727520637717,-2682.28403951,0.000123,4]
[339379714,1727520637729,-517.71596049,0.000123,4]
[339379715,1727520637738,-150.45,0.000124,2]
[339379716,1727520637747,-600.0,0.000124,4]
[339379717,1727520637757,-161.507085,0.00012406,2]
[339379718,1727520637766,-174.074221,0.00012406,2]
[339379719,1727520637776,-435.2444169,0.00012406,2]
[339379720,1727520637791,-171.4086321,0.00012406,2]
[339379721,1727520637800,-1792.360719,0.00012406,2]
[339379722,1727520637809,-379.336422,0.00012406,2]
[339379723,1727520637818,-585.29,0.00012406,2]
[339379724,1727520637827,-600.0,0.000125,4]
[339379725,1727520637836,-150.0,0.0001256,2]
[339379726,1727520637845,-606.653049,0.00012561,2]
[339379727,1727520637854,-1792.360719,0.00012561,2]
[339379728,1727520637862,-379.336422,0.00012561,2]
[339379729,1727520637871,-600.0,0.000126,4]
[339379730,1727520637880,-304.26235351,0.0001265,2]
[339379731,1727520637895,-12.29269249,0.0001265,2]
[339379732,1727520637904,-600.0,0.000127,4]
[339379733,1727520637913,-606.653049,0.00012716,2]
[339379734,1727520637922,-1792.360719,0.00012716,2]
[339379735,1727520637932,-379.336422,0.00012716,2]
[339379736,1727520637941,-6407.3998,0.00012755,2]
[339379737,1727520637950,-154.9008,0.00012755,2]
[339379738,1727520637959,-2061.1445,0.000128,2]
[339379739,1727520637967,-3171.5347,0.000128,2]
[339379740,1727520637977,-827.350988,0.000128,2]
[339379741,1727520637986,-312.592,0.000128,2]
[339379742,1727520637995,-70957.2709,0.000128,2]
[339379743,1727520638004,-11665.0194,0.000128,2]
[339379744,1727520638013,-500.0,0.000128,2]
[339379745,1727520638022,-220.60246218,0.000128,2]
[339379746,1727520638031,-466.7917,0.000128,2]
[339379747,1727520638040,-193.6701,0.000128,2]
[339379748,1727520638049,-172.17090236,0.000128,2]
[339379749,1727520638058,-153.73177365,0.000128,2]
[339379750,1727520638068,-171.91852514,0.000128,2]
[339379751,1727520638077,-932.31,0.000128,2]
[339379752,1727520638086,-1100.0,0.000128,4]
[339379753,1727520638095,-196.36,0.000128,2]
[339379754,1727520638105,-207.96,0.000128,2]
[339379755,1727520638115,-207.18361201,0.000128,2]
[339379756,1727520638124,-200.312,0.00012849,2]
[339379757,1727520638134,-172.918,0.00012849,2]
[339379758,1727520638145,-84024.60950253,0.00012866,2]
[339379759,1727520638158,-180.0,0.0001287,2]
[339379760,1727520638167,-606.653049,0.00012871,2]
[339379762,1727520638177,-1792.360719,0.00012871,2]
[339379763,1727520638188,-379.336422,0.00012871,2]
[339379764,1727520638198,-500.0,0.00012873,2]
[339379765,1727520638207,-501.0521928,0.00012873,2]
[339379766,1727520638217,-211.99856331,0.00012873,2]
[339379767,1727520638228,-500.0,0.00012873,2]
[339379768,1727520638237,-152.81,0.0001289,2]
[339379769,1727520638246,-150.0,0.00012899,2]
[339379770,1727520638255,-500.0,0.00012899,2]
[339379771,1727520638265,-500.0,0.00012899,2]
[339379772,1727520638275,-347.78045489,0.00012899,2]
[339379773,1727520638284,-500.0,0.00012899,2]
[339379774,1727520638293,-500.0,0.00012899,2]
[339379775,1727520638302,-500.0,0.00012899,2]
[339379776,1727520638312,-500.0,0.00012899,2]
[339379777,1727520638320,-500.0,0.00012899,2]
[339379778,1727520638330,-500.0,0.00012899,2]
[339379779,1727520638339,-500.0,0.00012899,2]
[339379780,1727520638348,-500.0,0.00012899,2]
[339379781,1727520638358,-500.0,0.00012899,2]
[339379782,1727520638366,-500.0,0.00012899,2]
[339379783,1727520638375,-602.85474451,0.00012899,2]
[339379784,1727520638385,-3026.92071635,0.000129,2]
[339379785,1727520638395,-410889.03574666,0.000129,2]
[339379786,1727520638404,-1459503.62247093,0.000129,2]
[339379787,1727520638416,-251.78843807,0.000129,2]
[339379788,1727520638426,-2769.32653538,0.000129,2]
[339379789,1727520638437,-1900.0,0.000129,2]
[339379792,1727520640094,-873.11186112,0.000129,2]
[339379793,1727520640106,-1413.785048,0.000129,2]
[339379794,1727520640117,-658.106768,0.000129,2]
[339379795,1727520640128,-728.7300016,0.000129,2]
[339379803,1727520642970,-1666.4273448,0.000128,2]
[339379804,1727520642980,-4919.00141604,0.000129,2]
[339379805,1727520642992,-6966.88909966,0.000129,2]
[339379806,1727520643003,-3607.28149214,0.000129,2]
[339379826,1727520645703,-475.02904167,0.000129,2]
[339379831,1727520645746,-14010.93394732,0.000129,2]
[339379833,1727520645755,-11686.13465226,0.000129,2]
[339379835,1727520645766,-263.197,0.000129,2]
[339379838,1727520645787,-1666.42734476,0.00012811,2]
[339379840,1727520645796,-3240.25121524,0.000129,2]
[339379844,1727520645826,-4008.24561734,0.000129,2]
[339379850,1727520645867,-403.81961379,0.000129,2]
[339379879,1727520860367,225.74,9.907e-05,2]
[339379880,1727520882011,2004.0,0.00021,60]
[339379881,1727520887022,9910.03198346,0.00022,120]
[339379882,1727520964293,2000.0,0.00021,60]
[339379895,1727521248939,194.08,0.00010959,2]
[339379921,1727521517060,245.78,9.582e-05,2]
[339379924,1727521551063,2500.0,0.00021,60]
[339379970,1727521670681,1050.0,0.00011,2]
[339379977,1727521801579,154.33,0.00010959,2]
[339379981,1727521831858,-365.06759219,0.00011423,2]
[339379982,1727521831871,-18.93240781,0.00011423,2]
[339379983,1727521831881,-185.33,0.00011433,2]
[339379984,1727521831891,-250.0,0.00011444,2]
[339379985,1727521831901,-300.0,0.0001149,2]
[339379986,1727521831910,-1104.68648219,0.00011491,2]
[339379987,1727521831922,-1440.26954301,0.00011491,2]
[339379988,1727521831975,-2858.57223586,0.00011491,2]
[339379989,1727521831986,-3007.4,0.00011491,2]
[339379990,1727521832026,-494.60842309,0.00011491,2]
[339379991,1727521832037,-3107.76331585,0.00011491,2]
[339379992,1727521832047,-150.0,0.00011589,2]
[339379993,1727521832057,-150.0,0.00011589,2]
[339379994,1727521832067,-150.0,0.00011589,2]
[339379995,1727521832076,-150.0,0.00011589,2]
[339379996,1727521832086,-150.0,0.00011648,2]
[339379997,1727521832095,-250.0,0.00011674,2]
[339379998,1727521832104,-213.69,0.00011676,2]
[339379999,1727521832113,-2751.0,0.00011685,2]
[339380000,1727521832123,-150.0,0.00011706,2]
[339380001,1727521832132,-299.99,0.00011706,2]
[339380002,1727521832141,-821.9,0.00011706,2]
[339380003,1727521832151,-150.0,0.00011718,2]
[339380004,1727521832160,-616.0,0.00011751,2]
[339380005,1727521832169,-150.0,0.00011765,2]
[339380006,1727521832180,-306.34,0.00011768,2]
[339380007,1727521832189,-150.0,0.00011823,2]
[339380008,1727521832198,-245.78,0.00011846,2]
[339380009,1727521832207,-150.0,0.00011847,2]
[339380010,1727521832216,-150.0,0.00011882,2]
[339380011,1727521832225,-700.0,0.000119,4]
[339380013,1727521832235,-150.0,0.00011911,2]
[339380014,1727521832243,-150.0,0.0001194,2]
[339380016,1727521832252,-150.0,0.00011975,2]
[339380018,1727521832262,-150.0,0.00011999,2]
[339380020,1727521832271,-150.0,0.00012,2]
[339380022,1727521832281,-2957.71238695,0.00012,2]
[339380025,1727521832295,-739.32803792,0.00012,2]
[339380035,1727521837972,-2470.70831661,0.00012,2]
[339380036,1727521837984,-3500.37831777,0.00012,2]